[Event "*** Titled Tuesday Blitz"]
[Site "Chess.com"]
[Date "2019.05.07"]
[Round "4"]
[White "picturesquecheck"]
[Black "albano87"]
[Result "0-1"]
[WhiteElo "2039"]
[BlackElo "2220"]
[TimeControl "180+2"]
[EndTime "13:55:39 PDT"]
[Termination "albano87 won by resignation"]

1. e4 {[%clk 0:03:01.9]} 1... c5 {[%clk 0:02:59.7]} 2. Nf3 {[%clk 0:03:00.3]}
2... Nc6 {[%clk 0:03:00.3]} 3. d4 {[%clk 0:03:00.9]} 3... cxd4 {[%clk
0:03:00.7]} 4. Nxd4 {[%clk 0:03:02.5]} 4... Nf6 {[%clk 0:02:59.4]} 5. Nc3 {[%clk
0:03:00.9]} 5... d6 {[%clk 0:02:58.3]} 6. Bg5 {[%clk 0:03:00.3]} 6... Bd7 {[%clk
0:02:57.1]} 7. Qd2 {[%clk 0:02:51]} 7... Rc8 {[%clk 0:02:54.5]} 8. Nxc6 {[%clk
0:02:39.8]} 8... Bxc6 {[%clk 0:02:51.6]} 9. f3 {[%clk 0:02:40.4]} 9... e6 {[%clk
0:02:46.6]} 10. O-O-O {[%clk 0:02:29.4]} 10... Be7 {[%clk 0:02:46.3]} 11. Be3
{[%clk 0:02:24.4]} 11... Qa5 {[%clk 0:02:44.3]} 12. Kb1 {[%clk 0:02:19.9]} 12...
a6 {[%clk 0:02:32.3]} 13. Ne2 {[%clk 0:02:14.4]} 13... Qxd2 {[%clk 0:02:31]} 14.
Rxd2 {[%clk 0:02:10.7]} 14... O-O {[%clk 0:02:32.9]} 15. Nd4 {[%clk 0:02:05.9]}
15... Rfd8 {[%clk 0:02:31.4]} 16. Bc4 {[%clk 0:01:54.7]} 16... d5 {[%clk
0:02:31.4]} 17. exd5 {[%clk 0:01:51.5]} 17... Bxd5 {[%clk 0:02:30.9]} 18. Bxd5
{[%clk 0:01:45.4]} 18... Nxd5 {[%clk 0:02:30.6]} 19. Bf2 {[%clk 0:01:44.5]}
19... Bg5 {[%clk 0:02:27]} 20. Rdd1 {[%clk 0:01:38.7]} 20... Ne3 {[%clk
0:02:26.5]} 21. Bxe3 {[%clk 0:01:31.7]} 21... Bxe3 {[%clk 0:02:28.4]} 22. Nb3
{[%clk 0:01:30]} 22... Kf8 {[%clk 0:02:28.3]} 23. c3 {[%clk 0:01:30]} 23... Ke7
{[%clk 0:02:26.6]} 24. Kc2 {[%clk 0:01:30.4]} 24... Kf6 {[%clk 0:02:27.1]} 25.
Rd3 {[%clk 0:01:26.2]} 25... Bb6 {[%clk 0:02:23.3]} 26. Rhd1 {[%clk 0:01:24.9]}
26... Rxd3 {[%clk 0:02:19.9]} 27. Rxd3 {[%clk 0:01:26.2]} 27... Rc7 {[%clk
0:02:21.8]} 28. Kd1 {[%clk 0:01:24.2]} 28... Ke5 {[%clk 0:02:20.8]} 29. Ke2
{[%clk 0:01:23.8]} 29... h5 {[%clk 0:02:21.2]} 30. g3 {[%clk 0:01:23.3]} 30...
g5 {[%clk 0:02:19.4]} 31. Nd2 {[%clk 0:01:13.6]} 31... f5 {[%clk 0:02:16.4]} 32.
b3 {[%clk 0:01:09.7]} 32... h4 {[%clk 0:02:07.6]} 33. Nc4+ {[%clk 0:01:09.9]}
33... Rxc4 {[%clk 0:02:03.7]} 34. bxc4 {[%clk 0:01:10.4]} 34... h3 {[%clk
0:02:05.1]} 35. Rd7 {[%clk 0:01:08.8]} 35... Bg1 {[%clk 0:02:04.6]} 36. Rxb7
{[%clk 0:01:07]} 36... Bxh2 {[%clk 0:02:04.3]} 37. Kf2 {[%clk 0:01:08.5]} 37...
f4 {[%clk 0:02:03.9]} 38. gxf4+ {[%clk 0:01:08.5]} 38... Bxf4 {[%clk 0:02:03.8]}
39. Rh7 {[%clk 0:01:06.3]} 39... h2 {[%clk 0:02:03.6]} 40. Ke2 {[%clk
0:00:53.8]} 40... Bg3 {[%clk 0:01:59.1]} 41. Kd3 {[%clk 0:00:50.2]} 41... Kf4
{[%clk 0:01:58.5]} 42. Rxh2 {[%clk 0:00:44.6]} 42... Bxh2 {[%clk 0:01:56.5]} 43.
Ke2 {[%clk 0:00:42.3]} 43... Ke5 {[%clk 0:01:54.3]} 44. Ke3 {[%clk 0:00:42.2]}
44... Bf4+ {[%clk 0:01:52.3]} 45. Kd3 {[%clk 0:00:42.7]} 45... Kd6 {[%clk
0:01:54.2]} 46. Kd4 {[%clk 0:00:42.6]} 46... e5+ {[%clk 0:01:54.3]} 47. Ke4
{[%clk 0:00:42.7]} 47... Kc5 {[%clk 0:01:56.2]} 48. Kd3 {[%clk 0:00:43.1]} 48...
a5 {[%clk 0:01:55.7]} 49. a4 {[%clk 0:00:42.3]} 49... Bh2 {[%clk 0:01:56.6]} 50.
Ke4 {[%clk 0:00:41.8]} 50... Kxc4 {[%clk 0:01:58.5]} 0-1

[Event "*** Titled Tuesday Blitz"]
[Site "Chess.com"]
[Date "2019.05.07"]
[Round "4"]
[White "Naruto-K"]
[Black "Veiso"]
[Result "0-1"]
[WhiteElo "2522"]
[BlackElo "2377"]
[TimeControl "180+2"]
[EndTime "13:55:42 PDT"]
[Termination "Veiso won by resignation"]

1. d4 {[%clk 0:03:01.7]} 1... Nf6 {[%clk 0:02:58]} 2. Bf4 {[%clk 0:03:02.8]}
2... c5 {[%clk 0:02:58.1]} 3. d5 {[%clk 0:03:03.2]} 3... d6 {[%clk 0:02:57.2]}
4. Nc3 {[%clk 0:03:04.1]} 4... g6 {[%clk 0:02:56.8]} 5. e4 {[%clk 0:03:05]} 5...
Bg7 {[%clk 0:02:58.1]} 6. Nf3 {[%clk 0:03:05.8]} 6... O-O {[%clk 0:02:58.5]} 7.
Be2 {[%clk 0:03:06.8]} 7... b5 {[%clk 0:02:58.3]} 8. Bxb5 {[%clk 0:03:07]} 8...
Nxe4 {[%clk 0:02:57.4]} 9. O-O {[%clk 0:02:21.4]} 9... Nxc3 {[%clk 0:02:45.5]}
10. bxc3 {[%clk 0:02:23.3]} 10... Bxc3 {[%clk 0:02:47]} 11. Rb1 {[%clk
0:02:24.4]} 11... Bg7 {[%clk 0:02:46.4]} 12. Re1 {[%clk 0:02:16.5]} 12... Bd7
{[%clk 0:02:46.1]} 13. Bf1 {[%clk 0:01:43]} 13... Bg4 {[%clk 0:02:45.4]} 14. Rb7
{[%clk 0:01:36]} 14... Nd7 {[%clk 0:02:45.9]} 15. h3 {[%clk 0:01:36.7]} 15...
Bxf3 {[%clk 0:02:46.3]} 16. Qxf3 {[%clk 0:01:37.7]} 16... Ne5 {[%clk 0:02:47.3]}
17. Qa3 {[%clk 0:01:33.4]} 17... a5 {[%clk 0:02:42.4]} 18. Qa4 {[%clk
0:01:09.5]} 18... h6 {[%clk 0:02:28.6]} 19. Reb1 {[%clk 0:01:07.9]} 19... g5
{[%clk 0:02:29]} 20. Bd2 {[%clk 0:01:07.4]} 20... f5 {[%clk 0:02:25.9]} 21. R1b5
{[%clk 0:01:01.5]} 21... f4 {[%clk 0:02:13.4]} 22. Rxa5 {[%clk 0:00:57.9]} 22...
Rxa5 {[%clk 0:02:13.5]} 23. Bxa5 {[%clk 0:00:54.4]} 23... Qa8 {[%clk 0:02:01.3]}
24. Qb5 {[%clk 0:00:51.3]} 24... f3 {[%clk 0:02:01.1]} 25. g3 {[%clk 0:00:51.2]}
25... Bf6 {[%clk 0:01:49.9]} 26. a4 {[%clk 0:00:48.4]} 26... Qc8 {[%clk
0:01:45.4]} 27. Bd2 {[%clk 0:00:35.6]} 27... Qf5 {[%clk 0:01:43.2]} 28. Qb1
{[%clk 0:00:28.8]} 28... h5 {[%clk 0:01:32.8]} 29. a5 {[%clk 0:00:26.6]} 29...
h4 {[%clk 0:01:29.1]} 30. g4 {[%clk 0:00:20.3]} 30... Qe4 {[%clk 0:01:00.5]} 31.
c4 {[%clk 0:00:16.2]} 31... Qxb1 {[%clk 0:00:51.2]} 32. Rxb1 {[%clk 0:00:18.1]}
32... Ra8 {[%clk 0:00:52.3]} 33. Rb7 {[%clk 0:00:17.1]} 33... Kf8 {[%clk
0:00:52.6]} 34. Rb6 {[%clk 0:00:11.8]} 34... Ke8 {[%clk 0:00:53.1]} 35. a6
{[%clk 0:00:06.5]} 35... Nd7 {[%clk 0:00:53.9]} 36. Rc6 {[%clk 0:00:07.9]} 36...
Nb8 {[%clk 0:00:53.5]} 37. Rc8+ {[%clk 0:00:08.8]} 37... Kd7 {[%clk 0:00:54.6]}
38. Rh8 {[%clk 0:00:09.6]} 38... Bxh8 {[%clk 0:00:55.1]} 0-1

[Event "*** Titled Tuesday Blitz"]
[Site "Chess.com"]
[Date "2019.05.07"]
[Round "4"]
[White "vovachesss"]
[Black "Kangoroo3000"]
[Result "1-0"]
[WhiteElo "2528"]
[BlackElo "2658"]
[TimeControl "180+2"]
[EndTime "13:55:48 PDT"]
[Termination "vovachesss won on time"]

1. Nf3 {[%clk 0:03:01.9]} 1... d5 {[%clk 0:03:00.5]} 2. b3 {[%clk 0:03:02.9]}
2... Bg4 {[%clk 0:03:00.6]} 3. Bb2 {[%clk 0:03:03.6]} 3... Bxf3 {[%clk
0:03:01.5]} 4. gxf3 {[%clk 0:03:03.6]} 4... Nf6 {[%clk 0:03:02.9]} 5. Bg2 {[%clk
0:03:02.3]} 5... e6 {[%clk 0:03:02.1]} 6. e4 {[%clk 0:03:03.3]} 6... g6 {[%clk
0:02:57.9]} 7. Qe2 {[%clk 0:02:59.3]} 7... Bg7 {[%clk 0:01:33.3]} 8. exd5 {[%clk
0:02:56.3]} 8... Qxd5 {[%clk 0:01:25.2]} 9. Nc3 {[%clk 0:02:57.3]} 9... Qa5
{[%clk 0:01:20.7]} 10. Ne4 {[%clk 0:02:36.5]} 10... Nbd7 {[%clk 0:01:21.4]} 11.
f4 {[%clk 0:02:23.9]} 11... Qb6 {[%clk 0:01:14]} 12. O-O-O {[%clk 0:02:03.9]}
12... O-O-O {[%clk 0:01:10]} 13. Ng5 {[%clk 0:01:57.5]} 13... Rhf8 {[%clk
0:01:03.6]} 14. Ba3 {[%clk 0:01:27.8]} 14... c5 {[%clk 0:00:57.2]} 15. Qc4
{[%clk 0:00:56.2]} 15... Qa5 {[%clk 0:00:45.4]} 16. Bb2 {[%clk 0:00:46.3]} 16...
Nb6 {[%clk 0:00:39.5]} 17. Qe2 {[%clk 0:00:30.6]} 17... Nbd5 {[%clk 0:00:36.2]}
18. Qf3 {[%clk 0:00:25.5]} 18... Qa6 {[%clk 0:00:28.3]} 19. Kb1 {[%clk
0:00:24.1]} 19... Bh8 {[%clk 0:00:24.7]} 20. d4 {[%clk 0:00:17.7]} 20... c4
{[%clk 0:00:23.4]} 21. Bf1 {[%clk 0:00:17.5]} 21... b5 {[%clk 0:00:22.7]} 22. a4
{[%clk 0:00:11.3]} 22... bxa4 {[%clk 0:00:09.7]} 23. bxc4 {[%clk 0:00:11.3]}
23... Nb4 {[%clk 0:00:05.3]} 24. Qc3 {[%clk 0:00:05.9]} 24... Nc6 {[%clk
0:00:04.7]} 25. Bg2 {[%clk 0:00:03.2]} 25... Qb7 {[%clk 0:00:04.7]} 26. Ne4
{[%clk 0:00:04.5]} 26... Nd7 {[%clk 0:00:04.9]} 27. Nd6+ {[%clk 0:00:05.4]} 1-0

[Event "*** Titled Tuesday Blitz"]
[Site "Chess.com"]
[Date "2019.05.07"]
[Round "4"]
[White "norwaytoadog"]
[Black "GremioPrudente"]
[Result "0-1"]
[WhiteElo "2239"]
[BlackElo "2133"]
[TimeControl "180+2"]
[EndTime "13:55:53 PDT"]
[Termination "GremioPrudente won on time"]

1. e4 {[%clk 0:03:01.8]} 1... e6 {[%clk 0:03:00.2]} 2. d4 {[%clk 0:03:02.1]}
2... d5 {[%clk 0:03:00.9]} 3. e5 {[%clk 0:03:02.7]} 3... c5 {[%clk 0:03:01.5]}
4. c3 {[%clk 0:03:03.1]} 4... Qb6 {[%clk 0:03:03]} 5. Nf3 {[%clk 0:03:03.5]}
5... Bd7 {[%clk 0:03:04.4]} 6. a3 {[%clk 0:03:02.9]} 6... cxd4 {[%clk 0:02:40]}
7. cxd4 {[%clk 0:03:02.7]} 7... Bb5 {[%clk 0:02:41.5]} 8. Bxb5+ {[%clk
0:03:01.2]} 8... Qxb5 {[%clk 0:02:42.3]} 9. Nc3 {[%clk 0:03:02.5]} 9... Qa6
{[%clk 0:02:37.1]} 10. Ne2 {[%clk 0:02:58.7]} 10... Ne7 {[%clk 0:02:31.8]} 11.
O-O {[%clk 0:02:59.1]} 11... Nd7 {[%clk 0:02:32.8]} 12. b4 {[%clk 0:02:49.3]}
12... Rc8 {[%clk 0:02:27.3]} 13. Be3 {[%clk 0:02:38.6]} 13... Nf5 {[%clk
0:02:22.6]} 14. Nf4 {[%clk 0:02:19.1]} 14... Nxe3 {[%clk 0:02:11.7]} 15. fxe3
{[%clk 0:02:19.8]} 15... Rc3 {[%clk 0:02:13.3]} 16. Qd2 {[%clk 0:01:54.3]} 16...
Rxa3 {[%clk 0:02:06.2]} 17. Rac1 {[%clk 0:01:42.7]} 17... Nb6 {[%clk 0:02:03.6]}
18. Rc7 {[%clk 0:01:31]} 18... Nc4 {[%clk 0:02:03.7]} 19. Qf2 {[%clk 0:01:07.7]}
19... Ra2 {[%clk 0:01:41]} 20. Qh4 {[%clk 0:00:56.9]} 20... Qb6 {[%clk
0:01:31.2]} 21. Rc8+ {[%clk 0:00:39.9]} 21... Kd7 {[%clk 0:01:32.3]} 22. Ra8
{[%clk 0:00:35.4]} 22... Nxe3 {[%clk 0:01:26.9]} 23. Rc1 {[%clk 0:00:32.3]}
23... Be7 {[%clk 0:01:21.2]} 24. Ng5 {[%clk 0:00:25.5]} 24... Rxa8 {[%clk
0:01:14.8]} 25. Qxh7 {[%clk 0:00:16]} 25... Bxg5 {[%clk 0:01:08.3]} 26. Qxg7
{[%clk 0:00:17]} 26... Be7 {[%clk 0:00:57.8]} 27. Qxf7 {[%clk 0:00:16.8]} 27...
Rc2 {[%clk 0:00:49.5]} 28. Re1 {[%clk 0:00:15.6]} 28... Rf8 {[%clk 0:00:41.4]}
29. Qg7 {[%clk 0:00:09.3]} 29... Rxf4 {[%clk 0:00:40]} 0-1

[Event "*** Titled Tuesday Blitz"]
[Site "Chess.com"]
[Date "2019.05.07"]
[Round "4"]
[White "Siemba"]
[Black "LarissaSteenbekkers"]
[Result "1-0"]
[WhiteElo "2110"]
[BlackElo "1957"]
[TimeControl "180+2"]
[EndTime "13:55:55 PDT"]
[Termination "Siemba won on time"]

1. e4 {[%clk 0:03:01.9]} 1... e6 {[%clk 0:03:00.2]} 2. d4 {[%clk 0:02:51.8]}
2... d5 {[%clk 0:03:01.3]} 3. Nc3 {[%clk 0:02:47.5]} 3... Bb4 {[%clk 0:02:58.6]}
4. e5 {[%clk 0:02:38.7]} 4... Ne7 {[%clk 0:02:59.6]} 5. a3 {[%clk 0:02:37.3]}
5... Bxc3+ {[%clk 0:02:56.7]} 6. bxc3 {[%clk 0:02:39.2]} 6... c5 {[%clk
0:02:55.1]} 7. Qg4 {[%clk 0:02:38.3]} 7... Qc7 {[%clk 0:02:53]} 8. Qxg7 {[%clk
0:02:38.2]} 8... Rg8 {[%clk 0:02:53.5]} 9. Qxh7 {[%clk 0:02:39.7]} 9... cxd4
{[%clk 0:02:54.3]} 10. Ne2 {[%clk 0:02:40]} 10... dxc3 {[%clk 0:02:54.8]} 11. f4
{[%clk 0:02:40.9]} 11... Nbc6 {[%clk 0:02:53.1]} 12. Qd3 {[%clk 0:02:41.4]}
12... Bd7 {[%clk 0:02:36]} 13. Nxc3 {[%clk 0:02:29.9]} 13... a6 {[%clk
0:02:31.1]} 14. Rb1 {[%clk 0:02:24.6]} 14... Rc8 {[%clk 0:02:21.4]} 15. h4
{[%clk 0:02:20]} 15... Na5 {[%clk 0:02:13]} 16. Rh3 {[%clk 0:02:17.5]} 16... Nc4
{[%clk 0:02:10.1]} 17. h5 {[%clk 0:02:14.5]} 17... Nf5 {[%clk 0:01:54.4]} 18. h6
{[%clk 0:01:28]} 18... Rh8 {[%clk 0:01:24]} 19. h7 {[%clk 0:01:20.1]} 19... Qc5
{[%clk 0:01:15.1]} 20. g4 {[%clk 0:01:18]} 20... Nd4 {[%clk 0:00:57.7]} 21. Rxb7
{[%clk 0:01:13.8]} 21... Bc6 {[%clk 0:00:35.3]} 22. Rxf7 {[%clk 0:00:46.8]}
22... Kxf7 {[%clk 0:00:33.5]} 23. Rh6 {[%clk 0:00:32.3]} 23... Ke7 {[%clk
0:00:30.8]} 24. f5 {[%clk 0:00:21.6]} 24... Nxa3 {[%clk 0:00:21.9]} 25. Nxd5+
{[%clk 0:00:17.9]} 25... Bxd5 {[%clk 0:00:19.5]} 26. Bxa3 {[%clk 0:00:15.8]}
26... Nb5 {[%clk 0:00:06.7]} 27. Bxc5+ {[%clk 0:00:16.2]} 27... Rxc5 {[%clk
0:00:07.1]} 28. fxe6 {[%clk 0:00:13.2]} 28... Bxe6 {[%clk 0:00:05.9]} 29. c4
{[%clk 0:00:12.9]} 29... Nc7 {[%clk 0:00:04.1]} 30. Qd6+ {[%clk 0:00:13.5]}
30... Ke8 {[%clk 0:00:02.2]} 31. Qxc5 {[%clk 0:00:14.8]} 1-0

[Event "*** Titled Tuesday Blitz"]
[Site "Chess.com"]
[Date "2019.05.07"]
[Round "4"]
[White "DrMelekess"]
[Black "elefante33"]
[Result "1-0"]
[WhiteElo "2765"]
[BlackElo "2561"]
[TimeControl "180+2"]
[EndTime "13:55:58 PDT"]
[Termination "DrMelekess won by resignation"]

1. d4 {[%clk 0:03:00.1]} 1... Nf6 {[%clk 0:02:59.7]} 2. Nf3 {[%clk 0:03:00.8]}
2... b6 {[%clk 0:02:42.4]} 3. g3 {[%clk 0:03:00.9]} 3... Bb7 {[%clk 0:02:40.9]}
4. Bg2 {[%clk 0:03:01.6]} 4... e6 {[%clk 0:02:34.9]} 5. O-O {[%clk 0:03:00.6]}
5... Be7 {[%clk 0:02:34.6]} 6. c4 {[%clk 0:03:01.4]} 6... O-O {[%clk 0:02:29.3]}
7. Re1 {[%clk 0:03:02.3]} 7... Ne4 {[%clk 0:02:16.3]} 8. Qc2 {[%clk 0:02:49.1]}
8... f5 {[%clk 0:02:12.1]} 9. Nfd2 {[%clk 0:02:42.7]} 9... Nc6 {[%clk
0:02:07.6]} 10. Nxe4 {[%clk 0:02:23.1]} 10... Nxd4 {[%clk 0:01:56]} 11. Qd3
{[%clk 0:02:20.9]} 11... fxe4 {[%clk 0:01:51.6]} 12. Qxd4 {[%clk 0:01:54.7]}
12... Bc5 {[%clk 0:01:48.4]} 13. Qd1 {[%clk 0:01:55.2]} 13... Bxf2+ {[%clk
0:01:46.6]} 14. Kh1 {[%clk 0:01:55.6]} 14... Bxe1 {[%clk 0:01:45.4]} 15. Qxe1
{[%clk 0:01:57.5]} 15... d5 {[%clk 0:01:38.5]} 16. Nc3 {[%clk 0:01:53.9]} 16...
c5 {[%clk 0:01:18.5]} 17. b3 {[%clk 0:01:22.6]} 17... Qe7 {[%clk 0:01:17.3]} 18.
Bb2 {[%clk 0:01:13.6]} 18... Rf7 {[%clk 0:01:08.2]} 19. Rd1 {[%clk 0:01:13.1]}
19... Rd8 {[%clk 0:01:06.3]} 20. Kg1 {[%clk 0:01:10.3]} 20... Qg5 {[%clk
0:01:04.4]} 21. e3 {[%clk 0:01:02.7]} 21... h5 {[%clk 0:00:59.8]} 22. h4 {[%clk
0:00:54.3]} 22... Qg4 {[%clk 0:00:52.8]} 23. Nxe4 {[%clk 0:00:49.2]} 23... Rdf8
{[%clk 0:00:40.6]} 24. Nd6 {[%clk 0:00:28.4]} 24... Rf3 {[%clk 0:00:17.3]} 25.
Nxb7 {[%clk 0:00:24.3]} 25... Rxg3 {[%clk 0:00:18]} 26. Rd2 {[%clk 0:00:25.5]}
26... Qxh4 {[%clk 0:00:14.1]} 27. Rf2 {[%clk 0:00:18.5]} 27... Rb8 {[%clk
0:00:10.2]} 28. Be5 {[%clk 0:00:16.4]} 28... Rxb7 {[%clk 0:00:09.8]} 29. Bxg3
{[%clk 0:00:16.1]} 29... Qxg3 {[%clk 0:00:10.5]} 30. Rf8+ {[%clk 0:00:16.7]} 1-0

[Event "*** Titled Tuesday Blitz"]
[Site "Chess.com"]
[Date "2019.05.07"]
[Round "4"]
[White "GMsKoRPioN"]
[Black "FrenchMonster2002"]
[Result "1-0"]
[WhiteElo "2587"]
[BlackElo "2390"]
[TimeControl "180+2"]
[EndTime "13:56:00 PDT"]
[Termination "GMsKoRPioN won by resignation"]

1. d4 {[%clk 0:02:59.9]} 1... Nf6 {[%clk 0:03:01]} 2. c4 {[%clk 0:02:58.6]} 2...
g6 {[%clk 0:03:02.4]} 3. Nc3 {[%clk 0:02:59.9]} 3... Bg7 {[%clk 0:03:04]} 4. e4
{[%clk 0:03:01.2]} 4... d6 {[%clk 0:03:05.6]} 5. f3 {[%clk 0:03:02.4]} 5... a6
{[%clk 0:03:06.3]} 6. Be3 {[%clk 0:03:03.3]} 6... c6 {[%clk 0:03:07.7]} 7. Qd2
{[%clk 0:02:53.7]} 7... b5 {[%clk 0:03:06.7]} 8. Bh6 {[%clk 0:02:54.3]} 8...
Bxh6 {[%clk 0:02:51.9]} 9. Qxh6 {[%clk 0:02:56.2]} 9... Nbd7 {[%clk 0:02:23.7]}
10. h4 {[%clk 0:02:47.4]} 10... e5 {[%clk 0:01:51.7]} 11. d5 {[%clk 0:02:44.1]}
11... cxd5 {[%clk 0:01:34.1]} 12. cxd5 {[%clk 0:02:42.3]} 12... Nh5 {[%clk
0:01:11.6]} 13. Nge2 {[%clk 0:02:37.5]} 13... Qf6 {[%clk 0:01:01.2]} 14. Qe3
{[%clk 0:02:29.6]} 14... Bb7 {[%clk 0:00:40.2]} 15. O-O-O {[%clk 0:02:22.8]}
15... O-O {[%clk 0:00:34.4]} 16. Kb1 {[%clk 0:02:18]} 16... Nc5 {[%clk
0:00:25.2]} 17. g4 {[%clk 0:02:16.4]} 17... Nf4 {[%clk 0:00:23.2]} 18. g5 {[%clk
0:02:14.8]} 18... Qe7 {[%clk 0:00:12]} 19. Nxf4 {[%clk 0:02:15.7]} 19... exf4
{[%clk 0:00:13.6]} 20. Qxf4 {[%clk 0:02:16.5]} 20... b4 {[%clk 0:00:15.2]} 21.
Ne2 {[%clk 0:02:15]} 21... f5 {[%clk 0:00:13.9]} 22. e5 {[%clk 0:01:48.5]} 22...
Qxe5 {[%clk 0:00:08.6]} 23. Qxe5 {[%clk 0:01:45.2]} 23... dxe5 {[%clk
0:00:10.5]} 24. h5 {[%clk 0:01:47.1]} 24... Rad8 {[%clk 0:00:10.9]} 25. Nc1
{[%clk 0:01:46.8]} 25... Kg7 {[%clk 0:00:05.6]} 26. h6+ {[%clk 0:01:48]} 26...
Kf7 {[%clk 0:00:06.5]} 27. Bc4 {[%clk 0:01:46.6]} 27... Rd6 {[%clk 0:00:07.7]}
28. Rhe1 {[%clk 0:01:47.9]} 28... Re8 {[%clk 0:00:09]} 29. Nb3 {[%clk
0:01:47.3]} 29... Nxb3 {[%clk 0:00:09.6]} 30. Bxb3 {[%clk 0:01:49.2]} 30... a5
{[%clk 0:00:10]} 31. Rc1 {[%clk 0:01:47.7]} 31... Re7 {[%clk 0:00:09.1]} 32. Rc5
{[%clk 0:01:48.9]} 32... e4 {[%clk 0:00:05]} 33. fxe4 {[%clk 0:01:47.2]} 33...
fxe4 {[%clk 0:00:06.3]} 34. Rxa5 {[%clk 0:01:48.4]} 34... e3 {[%clk 0:00:06.5]}
35. Rb5 {[%clk 0:01:49.5]} 35... e2 {[%clk 0:00:06.7]} 36. Rxb4 {[%clk
0:01:50.5]} 36... Bxd5 {[%clk 0:00:06.7]} 37. Rd4 {[%clk 0:01:43.7]} 37... Re5
{[%clk 0:00:03.3]} 38. Bxd5+ {[%clk 0:01:39.2]} 38... Rdxd5 {[%clk 0:00:04.8]}
39. Rxd5 {[%clk 0:01:38.8]} 39... Rxd5 {[%clk 0:00:06.7]} 40. Rxe2 {[%clk
0:01:40.4]} 40... Rxg5 {[%clk 0:00:08.4]} 41. a4 {[%clk 0:01:41.5]} 41... Rh5
{[%clk 0:00:09.4]} 42. b4 {[%clk 0:01:40.4]} 42... Rxh6 {[%clk 0:00:10.8]} 43.
a5 {[%clk 0:01:41.5]} 43... Rh5 {[%clk 0:00:11.4]} 44. a6 {[%clk 0:01:41.3]}
44... Rh3 {[%clk 0:00:09.9]} 45. a7 {[%clk 0:01:38.5]} 45... Rb3+ {[%clk
0:00:11.1]} 46. Rb2 {[%clk 0:01:39.4]} 46... Ra3 {[%clk 0:00:12.1]} 47. Ra2
{[%clk 0:01:40.7]} 47... Rb3+ {[%clk 0:00:09.6]} 48. Kc2 {[%clk 0:01:40.7]}
48... Rxb4 {[%clk 0:00:10.9]} 49. a8=Q {[%clk 0:01:41.8]} 1-0

[Event "*** Titled Tuesday Blitz"]
[Site "Chess.com"]
[Date "2019.05.07"]
[Round "4"]
[White "RojonR"]
[Black "capatl"]
[Result "1-0"]
[WhiteElo "2418"]
[BlackElo "2574"]
[TimeControl "180+2"]
[EndTime "13:56:05 PDT"]
[Termination "RojonR won by resignation"]

1. e4 {[%clk 0:03:01.9]} 1... c5 {[%clk 0:02:57.5]} 2. Nf3 {[%clk 0:03:01.7]}
2... e6 {[%clk 0:02:58.1]} 3. c3 {[%clk 0:03:02.2]} 3... Nf6 {[%clk 0:02:56.1]}
4. e5 {[%clk 0:03:03]} 4... Nd5 {[%clk 0:02:56]} 5. d4 {[%clk 0:03:04.3]} 5...
cxd4 {[%clk 0:02:57.3]} 6. Qxd4 {[%clk 0:03:06.2]} 6... Nc6 {[%clk 0:02:52.5]}
7. Qe4 {[%clk 0:03:07]} 7... d6 {[%clk 0:02:50.4]} 8. Bb5 {[%clk 0:03:06.2]}
8... Bd7 {[%clk 0:02:47.2]} 9. c4 {[%clk 0:03:06.9]} 9... Nc7 {[%clk 0:02:36.8]}
10. Bg5 {[%clk 0:03:06.7]} 10... Be7 {[%clk 0:02:23.8]} 11. exd6 {[%clk
0:03:06.9]} 11... Nxb5 {[%clk 0:01:59.1]} 12. dxe7 {[%clk 0:02:47.6]} 12... Qa5+
{[%clk 0:01:43.2]} 13. Nbd2 {[%clk 0:01:57.2]} 13... Nd6 {[%clk 0:01:37.3]} 14.
Qd3 {[%clk 0:01:40.7]} 14... Nf5 {[%clk 0:01:02.8]} 15. O-O {[%clk 0:01:37.8]}
15... Nfxe7 {[%clk 0:00:59]} 16. Ne4 {[%clk 0:01:31.5]} 16... f6 {[%clk
0:00:26.7]} 17. Nd6+ {[%clk 0:00:55.6]} 17... Kf8 {[%clk 0:00:26.9]} 18. Nxb7
{[%clk 0:00:41.3]} 18... Qc7 {[%clk 0:00:27.2]} 19. Nc5 {[%clk 0:00:41.9]} 19...
Rd8 {[%clk 0:00:20.9]} 20. Qxd7 {[%clk 0:00:26.5]} 20... Qxd7 {[%clk 0:00:15.3]}
21. Nxd7+ {[%clk 0:00:27]} 21... Rxd7 {[%clk 0:00:17.2]} 22. Be3 {[%clk
0:00:27.2]} 22... Kf7 {[%clk 0:00:18.3]} 23. Rfd1 {[%clk 0:00:26]} 23... Rb7
{[%clk 0:00:19.1]} 24. Rab1 {[%clk 0:00:24.6]} 24... Rc8 {[%clk 0:00:21]} 25. a3
{[%clk 0:00:25.1]} 25... Na5 {[%clk 0:00:22]} 26. c5 {[%clk 0:00:24.7]} 26...
Nf5 {[%clk 0:00:22.7]} 27. b4 {[%clk 0:00:24.3]} 27... Nc4 {[%clk 0:00:24.3]}
28. Bc1 {[%clk 0:00:22.4]} 28... a5 {[%clk 0:00:23.7]} 29. Kf1 {[%clk
0:00:21.6]} 29... Rxc5 {[%clk 0:00:22.9]} 30. bxc5 {[%clk 0:00:20.6]} 30... Rxb1
{[%clk 0:00:24]} 31. c6 {[%clk 0:00:21]} 31... Ne7 {[%clk 0:00:24.8]} 32. c7
{[%clk 0:00:21.3]} 32... Nb6 {[%clk 0:00:24.2]} 33. Ke2 {[%clk 0:00:21.4]} 33...
Nbd5 {[%clk 0:00:24.8]} 34. Nd4 {[%clk 0:00:18.6]} 34... Nxc7 {[%clk 0:00:24.9]}
35. Bd2 {[%clk 0:00:17.1]} 35... a4 {[%clk 0:00:24.7]} 36. Rxb1 {[%clk
0:00:17.4]} 1-0